lending/lending_fUSD_20240723
["ID","MTS","AMOUNT","RATE_DAILY","PERIOD"]
[332990816,1721734233936,-2291.62820187,0.00010518,2]
[332990817,1721734233947,-933.49206678,0.00010518,2]
[332990818,1721734233960,-1850.72560984,0.00010518,2]
[332990819,1721734233972,-1720.23758648,0.00010518,2]
[332990820,1721734233982,-4300.0,0.000106,3]
[332990821,1721734233991,-482.68327876,0.000107,2]
[332990827,1721734238895,-1184.12672124,0.000107,2]
[332990828,1721734238904,-5400.0,0.000107,3]
[332990829,1721734238914,-9839.0,0.00010781,2]
[332990830,1721734238923,-220.88,0.00010795,2]
[332990831,1721734238934,-150.0,0.00010798,2]
[332990832,1721734238943,-1000.0,0.00010799,2]
[332990833,1721734238953,-1122.80088267,0.00010799,2]
[332990834,1721734238962,-1000.0,0.00010799,2]
[332990835,1721734238971,-499.99,0.00010799,2]
[332990836,1721734238982,-1534.6227007,0.000108,2]
[332990837,1721734239002,-3700.0,0.000108,2]
[332990838,1721734239027,-2603.10643675,0.000108,2]
[332990839,1721734239204,-425.4,0.000108,2]
[332990840,1721734239215,-1592.65686539,0.000108,2]
[332990843,1721734239226,-602.5968,0.000108,2]
[332990877,1721734240035,-6664.00000001,0.000108,2]
[332990897,1721734240352,-2088.3654478,0.000108,2]
[332990942,1721734243034,-4834.80441735,0.000108,2]
[332990943,1721734243044,-1000.0,0.000108,3]
[332990944,1721734243054,-349.34876406,0.00010814,2]
[332990945,1721734243064,-151.32323001,0.00010822,2]
[332990946,1721734243074,-165.92612166,0.0001084,2]
[332990947,1721734243084,-160.45083346,0.0001085,2]
[332990948,1721734243094,-169.46309801,0.00010858,2]
[332990949,1721734243103,-160.45083346,0.00010874,2]
[332990950,1721734243113,-169.46309799,0.00010879,2]
[332990951,1721734243123,-3000.0,0.0001088,2]
[332990952,1721734243133,-87513.27741036,0.0001089,2]
[332990953,1721734243142,-1000.0,0.00010894,2]
[332990954,1721734243152,-1000.0,0.00010894,2]
[332990955,1721734243161,-216.19769997,0.000109,2]
[332990956,1721734243170,-432.3953999,0.000109,2]
[332990957,1721734243180,-200000.0,0.000109,2]
[332990958,1721734243197,-1000.0,0.000109,3]
[332990959,1721734243207,-169.46309799,0.000109,2]
[332990960,1721734243218,-166.85942541,0.000109,2]
[332990961,1721734243228,-167.50704908,0.000109,2]
[332990962,1721734243238,-500.0,0.00010912,2]
[332990963,1721734243248,-256.3905806,0.00010922,2]
[332990964,1721734243257,-980.56,0.00010932,14]
[332990965,1721734243266,-242.21103045,0.00010956,2]
[332990966,1721734243276,-160.45083346,0.00010956,2]
[332990967,1721734243285,-500.0,0.00010958,2]
[332990968,1721734243294,-437.19993211,0.00010958,2]
[332990969,1721734243304,-291.33404323,0.00010958,2]
[332990970,1721734243313,-500.0,0.00010958,2]
[332990971,1721734243323,-638.91,0.00010958,2]
[332990972,1721734243332,-500.0,0.00010958,2]
[332990973,1721734243342,-1045.14,0.00010958,2]
[332990974,1721734243352,-500.0,0.00010958,2]
[332990975,1721734243361,-500.0,0.00010958,2]
[332990976,1721734243371,-500.0,0.00010958,2]
[332990977,1721734243380,-500.0,0.00010958,2]
[332990978,1721734243389,-500.0,0.00010958,2]
[332990979,1721734243399,-500.0,0.00010958,2]
[332990980,1721734243407,-500.0,0.00010958,2]
[332990981,1721734243417,-500.0,0.00010958,2]
[332990982,1721734243426,-500.0,0.00010958,2]
[332990983,1721734243440,-500.0,0.00010958,2]
[332990984,1721734243449,-500.0,0.00010958,2]
[332990985,1721734243459,-500.0,0.00010958,2]
[332990986,1721734243472,-500.0,0.00010958,2]
[332990987,1721734243481,-500.0,0.00010958,2]
[332990988,1721734243490,-500.0,0.00010958,2]
[332990989,1721734243499,-500.0,0.00010958,2]
[332990990,1721734243516,-500.0,0.00010958,2]
[332990992,1721734243528,-586.96,0.00010958,2]
[332990993,1721734243538,-500.0,0.00010958,2]
[332990994,1721734243548,-500.0,0.00010958,2]
[332990996,1721734243558,-369.68022024,0.00010958,2]
[332990997,1721734243568,-501.57139609,0.00010958,2]
[332990998,1721734243578,-500.0,0.00010958,2]
[332990999,1721734243587,-500.0,0.00010958,2]
[332991000,1721734243597,-500.0,0.00010958,2]
[332991001,1721734243606,-500.0,0.00010958,2]
[332991002,1721734243616,-500.0,0.00010958,2]
[332991003,1721734243625,-500.0,0.00010958,2]
[332991004,1721734243634,-500.0,0.00010958,2]
[332991005,1721734243643,-500.0,0.00010958,2]
[332991006,1721734243652,-500.0,0.00010958,2]
[332991007,1721734243662,-500.0,0.00010958,2]
[332991008,1721734243671,-500.0,0.00010958,2]
[332991009,1721734243681,-500.0,0.00010958,2]
[332991010,1721734243694,-266.31483415,0.00010958,2]
[332991011,1721734243703,-500.0,0.00010958,2]
[332991012,1721734243712,-500.0,0.00010958,2]
[332991013,1721734243722,-500.0,0.00010958,2]
[332991014,1721734243731,-581.66,0.00010959,5]
[332991016,1721734243741,-250.0,0.00010959,2]
[332991017,1721734243751,-167.08158442,0.00010961,2]
[332991018,1721734243760,-1376.50092779,0.00010967,2]
[332991019,1721734243770,-210.47845723,0.00010989,2]
[332991020,1721734243779,-1633.90818686,0.00010989,2]
[332991021,1721734243788,-1736.16890486,0.00010989,2]
[332991022,1721734243798,-506.57704786,0.00010989,2]
[332991023,1721734243808,-33429.23433677,0.0001099,2]
[332991024,1721734243818,-405.73,0.0001099,2]
[332991025,1721734243827,-1049.03428357,0.0001099,2]
[332991026,1721734243837,-151.0,0.0001099,2]
[332991028,1721734243846,-704.823034,0.0001099,2]
[332991030,1721734243855,-704.823034,0.0001099,2]
[332991031,1721734243865,-657.83742628,0.00010997,2]
[332991032,1721734243874,-13440.2946099,0.00010998,2]
[332991033,1721734243884,-500.0,0.00010998,2]
[332991034,1721734243894,-500.0,0.00010998,2]
[332991035,1721734243904,-500.0,0.00010998,2]
[332991036,1721734243913,-378.18627965,0.00010998,2]
[332991037,1721734243923,-500.0,0.00010998,2]
[332991038,1721734243932,-500.0,0.00010998,2]
[332991039,1721734243947,-500.0,0.00010998,2]
[332991040,1721734243957,-500.0,0.00010998,2]
[332991041,1721734243967,-3143.1750529,0.00010998,2]
[332991042,1721734243976,-500.0,0.00010998,2]
[332991043,1721734243989,-500.0,0.00010998,2]
[332991044,1721734243999,-500.0,0.00010998,2]
[332991045,1721734244008,-500.0,0.00010998,2]
[332991046,1721734244018,-500.0,0.00010998,2]
[332991047,1721734244027,-500.0,0.00010998,2]
[332991048,1721734244037,-500.0,0.00010998,2]
[332991049,1721734244046,-437.89,0.00010998,2]
[332991050,1721734244056,-500.0,0.00010998,2]
[332991051,1721734244066,-208.55,0.00010998,2]
[332991052,1721734244075,-500.0,0.00010998,2]
[332991053,1721734244085,-151.0,0.00010999,2]
[332991054,1721734244095,-638.91,0.00010999,2]
[332991055,1721734244104,-638.91,0.00010999,2]
[332991056,1721734244113,-638.91,0.00010999,2]
[332991057,1721734244123,-638.91,0.00010999,2]
[332991058,1721734244132,-638.91,0.00010999,2]
[332991059,1721734244142,-638.91,0.00010999,2]
[332991060,1721734244151,-638.91,0.00010999,2]
[332991061,1721734244161,-638.91,0.00010999,2]
[332991062,1721734244171,-638.91,0.00010999,2]
[332991063,1721734244181,-638.91,0.00010999,2]
[332991064,1721734244194,-638.91,0.00010999,2]
[332991065,1721734244461,-638.91,0.00010999,2]
[332991066,1721734244473,-638.91,0.00010999,2]
[332991067,1721734244485,-638.91,0.00010999,2]
[332991068,1721734244494,-638.91,0.00010999,2]
[332991069,1721734244503,-638.91,0.00010999,2]
[332991070,1721734244515,-638.91,0.00010999,2]
[332991071,1721734244525,-638.91,0.00010999,2]
[332991072,1721734244535,-638.91,0.00010999,2]
[332991073,1721734244544,-638.91,0.00010999,2]
[332991074,1721734244557,-638.91,0.00010999,2]
[332991075,1721734244569,-638.91,0.00010999,2]
[332991076,1721734244579,-639.07277201,0.00010999,2]
[332991077,1721734244588,-704.823034,0.00010999,2]
[332991078,1721734244597,-704.823034,0.00010999,2]
[332991079,1721734244606,-704.823034,0.00010999,2]
[332991080,1721734244615,-704.823034,0.00010999,2]
[332991081,1721734244624,-159.391276,0.00010999,2]
[332991082,1721734244633,-1045.14,0.00010999,2]
[332991083,1721734244644,-1045.14,0.00010999,2]
[332991084,1721734244653,-1045.14,0.00010999,2]
[332991085,1721734244663,-1045.14,0.00010999,2]
[332991086,1721734244672,-1045.14,0.00010999,2]
[332991087,1721734244681,-1045.14,0.00010999,2]
[332991088,1721734244693,-1045.14,0.00010999,2]
[332991089,1721734244706,-1045.14,0.00010999,2]
[332991090,1721734244716,-1045.14,0.00010999,2]
[332991091,1721734244726,-1045.14,0.00010999,2]
[332991092,1721734244735,-1045.14,0.00010999,2]
[332991093,1721734244744,-1045.14,0.00010999,2]
[332991094,1721734244754,-1045.14,0.00010999,2]
[332991095,1721734244764,-1045.14,0.00010999,2]
[332991096,1721734244773,-1045.14,0.00010999,2]
[332991097,1721734244783,-1045.14,0.00010999,2]
[332991098,1721734244793,-1045.14,0.00010999,2]
[332991099,1721734244802,-1045.14,0.00010999,2]
[332991100,1721734244812,-1045.14,0.00010999,2]
[332991101,1721734244821,-1045.14,0.00010999,2]
[332991102,1721734244830,-1045.14,0.00010999,2]
[332991103,1721734244840,-1045.14,0.00010999,2]
[332991104,1721734244849,-1045.31180064,0.00010999,2]
[332991105,1721734244858,-500.0,0.00010999,2]
[332991106,1721734244868,-500.0,0.00010999,2]
[332991107,1721734244877,-500.0,0.00010999,2]
[332991108,1721734244887,-500.0,0.00010999,2]
[332991109,1721734244897,-500.0,0.00010999,2]
[332991110,1721734244906,-500.0,0.00010999,2]
[332991111,1721734244916,-500.0,0.00010999,2]
[332991112,1721734244925,-430.46521017,0.00010999,2]
[332991113,1721734244935,-500.0,0.00010999,2]
[332991114,1721734244945,-500.0,0.00010999,2]
[332991115,1721734244955,-500.0,0.00010999,2]
[332991116,1721734244964,-500.0,0.00010999,2]
[332991117,1721734244974,-500.0,0.00010999,2]
[332991118,1721734244984,-500.0,0.00010999,2]
[332991119,1721734244994,-500.0,0.00010999,2]
[332991120,1721734245004,-500.0,0.00010999,2]
[332991121,1721734245013,-500.0,0.00010999,2]
[332991122,1721734245024,-500.0,0.00010999,2]
[332991123,1721734245033,-500.0,0.00010999,2]
[332991124,1721734245043,-470.20773126,0.00010999,2]
[332991125,1721734245052,-500.0,0.00010999,2]
[332991126,1721734245062,-286.67246286,0.00010999,2]
[332991127,1721734245072,-500.0,0.00010999,2]
[332991128,1721734245082,-474.5,0.00010999,2]
[332991129,1721734245091,-500.0,0.00010999,2]
[332991130,1721734245100,-434.62,0.00010999,2]
[332991131,1721734245110,-1095.6,0.00010999,2]
[332991132,1721734245120,-404.99,0.00010999,2]
[332991133,1721734245129,-500.0,0.00010999,2]
[332991134,1721734245139,-500.0,0.00010999,2]
[332991135,1721734245149,-500.0,0.00010999,2]
[332991136,1721734245158,-500.0,0.00010999,2]
[332991137,1721734245168,-502.91,0.00010999,2]
[332991138,1721734245177,-500.0,0.00010999,2]
[332991139,1721734245188,-500.0,0.00010999,2]
[332991140,1721734245198,-500.0,0.00010999,2]
[332991141,1721734245208,-489.53,0.00010999,2]
[332991142,1721734245218,-454.44,0.00010999,2]
[332991143,1721734245227,-500.0,0.00010999,2]
[332991144,1721734245237,-500.0,0.00010999,2]
[332991145,1721734245247,-500.0,0.00010999,2]
[332991146,1721734245256,-500.0,0.00010999,2]
[332991147,1721734245266,-607.35,0.00010999,2]
[332991148,1721734245276,-550.68,0.00010999,2]
[332991149,1721734245286,-500.0,0.00010999,2]
[332991150,1721734245295,-213.58,0.00010999,2]
[332991151,1721734245304,-500.0,0.00010999,2]
[332991152,1721734245314,-211.24,0.00010999,2]
[332991153,1721734245324,-500.0,0.00010999,2]
[332991154,1721734245333,-500.0,0.00010999,2]
[332991155,1721734245343,-506.22,0.00010999,2]
[332991156,1721734245353,-500.0,0.00010999,2]
[332991157,1721734245362,-500.0,0.00010999,2]
[332991158,1721734245372,-500.0,0.00010999,2]
[332991159,1721734245382,-614.32,0.00010999,2]
[332991160,1721734245391,-500.0,0.00010999,2]
[332991161,1721734245401,-500.0,0.00010999,2]
[332991162,1721734245410,-500.0,0.00010999,2]
[332991163,1721734245420,-500.0,0.00010999,2]
[332991164,1721734245430,-500.0,0.00010999,2]
[332991165,1721734245442,-529.80849113,0.00010999,2]
[332991166,1721734245451,-415.77130009,0.00010999,2]
[332991167,1721734245461,-500.0,0.00010999,2]
[332991168,1721734245471,-500.0,0.00010999,2]
[332991169,1721734245485,-500.0,0.00010999,2]
[332991170,1721734245495,-500.0,0.00010999,2]
[332991171,1721734245504,-500.0,0.00010999,2]
[332991172,1721734245515,-500.0,0.00010999,2]
[332991173,1721734245525,-500.0,0.00010999,2]
[332991174,1721734245535,-500.0,0.00010999,2]
[332991175,1721734245544,-500.0,0.00010999,2]
[332991176,1721734245553,-182.38,0.00010999,2]
[332991177,1721734245566,-457.98755876,0.00010999,2]
[332991178,1721734245576,-500.0,0.00010999,2]
[332991179,1721734245587,-500.0,0.00010999,2]
[332991180,1721734245597,-500.0,0.00010999,2]
[332991181,1721734245606,-500.0,0.00010999,2]
[332991182,1721734245615,-439.98,0.00010999,2]
[332991183,1721734245625,-500.0,0.00010999,2]
[332991184,1721734245634,-500.0,0.00010999,2]
[332991185,1721734245643,-396.14,0.00010999,2]
[332991186,1721734245653,-500.0,0.00010999,2]
[332991187,1721734245662,-500.0,0.00010999,2]
[332991188,1721734245671,-159.44,0.00010999,2]
[332991189,1721734245681,-500.0,0.00010999,2]
[332991190,1721734245694,-500.0,0.00010999,2]
[332991191,1721734245705,-500.0,0.00010999,2]
[332991192,1721734245715,-500.0,0.00010999,2]
[332991194,1721734245724,-314.05522351,0.00010999,2]
[332991195,1721734245734,-500.0,0.00010999,2]
[332991196,1721734245743,-203.96327732,0.00010999,2]
[332991197,1721734245753,-500.0,0.00010999,2]
[332991198,1721734245763,-166.48,0.00010999,2]
[332991199,1721734245774,-500.0,0.00010999,2]
[332991200,1721734245784,-500.0,0.00010999,2]
[332991202,1721734245794,-500.0,0.00010999,2]
[332991204,1721734245804,-547.41,0.00010999,2]
[332991206,1721734245814,-500.0,0.00010999,2]
[332991208,1721734245825,-500.0,0.00010999,2]
[332991210,1721734245835,-500.0,0.00010999,2]
[332991212,1721734245846,-500.0,0.00010999,2]
[332991214,1721734245856,-189.25,0.00010999,2]
[332991215,1721734245865,-500.0,0.00010999,2]
[332991216,1721734245875,-317.08,0.00010999,2]
[332991217,1721734245886,-500.0,0.00010999,2]
[332991218,1721734245896,-547.4,0.00010999,2]
[332991219,1721734245906,-98976.00832322,0.00011,2]
[332991220,1721734245916,-718.0,0.00011,2]
[332991221,1721734245926,-20268.93098702,0.00011,2]
[332991222,1721734245949,-977.79543901,0.00011,2]
[332991223,1721734245978,-180405.24882099,0.00011,2]
[332991224,1721734245990,-4023.18759903,0.00011,2]
[332991225,1721734246002,-1276.71507069,0.00011,2]
[332991226,1721734246026,-58869.6209986,0.00011,2]
[332991227,1721734246037,-93560.05780808,0.00011,2]
[332991228,1721734246688,-469.524,0.00011,2]
[332991229,1721734246699,-592.20419882,0.00011,2]
[332991230,1721734246711,-25870.6843161,0.00011,2]
[332991231,1721734246727,-1068.97188825,0.00011,2]
[332991232,1721734246739,-1869.8867048,0.00011,2]
[332991233,1721734246751,-1336.335,0.00011,2]
[332991234,1721734248763,-589.04,0.00010958,2]
[332991235,1721734248774,-500.0,0.00010958,2]
[332991236,1721734248785,-1013.64867624,0.00010989,2]
[332991237,1721734248795,-47227.99981812,0.00011,2]
[332991238,1721734248807,-1321.4022825,0.00011,2]
[332991239,1721734248820,-702.02781617,0.00011,2]
[332991240,1721734248832,-5102.30731548,0.00011,2]
[332991241,1721734248845,-6710.83890802,0.00011,2]
[332991242,1721734248857,-403.53386833,0.00011,2]
[332991266,1721734249178,-416922.42261614,0.00011,2]
[332991268,1721734249197,-1869.3662922,0.00011,2]
[332991271,1721734249212,-1758.62734678,0.00011,2]
[332991489,1721734303633,9000.0,5.479e-05,7]
[332991490,1721734303653,70944.34639474,5.479e-05,7]
[332991491,1721734303680,3621.08295766,5.479e-05,7]
[332991492,1721734488860,156.09915121,6.641e-05,2]
[332991493,1721734503939,205.50428581,6.641e-05,2]
[332991494,1721734525247,1265.30800411,6.641e-05,2]
[332991495,1721734632577,164.52349463,8.05e-05,2]
[332991496,1721734665548,702.29,8.219e-05,2]
[332991498,1721735144035,155.0,8.219e-05,2]
[332991500,1721735239046,155.0,8.219e-05,2]
[332991501,1721735297674,687.79,8.219e-05,2]
[332991506,1721735330030,155.0,8.219e-05,2]
[332991551,1721735411052,155.0,8.219e-05,2]
[332991591,1721735438094,-363.73758789,9.308e-05,2]
[332991592,1721735438103,-152.91519596,9.335e-05,2]
[332991593,1721735438116,-7.53563751,9.335e-05,2]
[332991594,1721735438125,-167.70597801,9.335e-05,2]
[332991595,1721735438135,-1330.61756353,9.336e-05,2]
[332991596,1721735438145,-363.73758789,9.345e-05,2]
[332991597,1721735438155,-1000.0,9.376e-05,2]
[332991598,1721735438165,-160.45083347,9.383e-05,2]
[332991599,1721735438174,-154.38946821,9.478e-05,2]
[332991600,1721735438183,-234.13732943,9.503e-05,2]
[332991601,1721735438193,-166.66666666,9.583e-05,2]
[332991602,1721735438205,-156.02826447,9.59e-05,2]
[332991603,1721735438214,-247.84422791,9.593e-05,2]
[332991604,1721735438224,-300.0,9.598e-05,2]
[332991605,1721735438234,-22393.88891883,9.599e-05,2]
[332991606,1721735438246,-8152.30575748,9.599e-05,2]
[332991607,1721735438257,-8208.53520196,9.599e-05,2]
[332991608,1721735438269,-1606.73102151,9.599e-05,2]
[332991609,1721735438281,-8833.53910022,9.599e-05,2]
[332991610,1721735438290,-716.16309935,9.645e-05,2]
[332991611,1721735438300,-193.19,9.67e-05,2]
[332991612,1721735438309,-150.0,9.676e-05,2]
[332991614,1721735438318,-166.66666666,9.677e-05,2]
[332991616,1721735438327,-266.65106926,9.694e-05,2]
[332991618,1721735438337,-166.66666666,9.716e-05,2]
[332991620,1721735438346,-4249.06243036,9.883e-05,2]
[332991622,1721735438357,-1989.47898931,9.883e-05,2]
[332991624,1721735438372,-981.55224733,9.883e-05,2]
[332991626,1721735438383,-1427.25349251,9.883e-05,2]
[332991628,1721735438393,-817.15530766,9.883e-05,2]
[332991630,1721735438405,-1332.68953283,9.883e-05,2]
[332991632,1721735438415,-118.64854281,9.884e-05,2]
[332991801,1721735440237,-219.05526245,9.884e-05,2]
[332991803,1721735440247,-266.65106926,9.884e-05,2]
[332991805,1721735440257,-166.66666667,9.898e-05,2]
[332991807,1721735440266,-266.65106926,9.942e-05,2]
[332991809,1721735440275,-2.27593236,9.962e-05,2]
[332991823,1721735440400,-148.70836411,9.962e-05,2]
[332991825,1721735440410,-156.02826447,9.985e-05,2]
[332991827,1721735440419,-247.84422791,0.00010034,2]
[332991829,1721735440428,-166.50801571,0.00010053,2]
[332991830,1721735440437,-166.66666666,0.00010056,2]
[332991832,1721735440446,-37.397108,0.00010068,2]
[332991849,1721735440565,-113.58718847,0.00010068,2]
[332991851,1721735440575,-887.72231477,0.00010095,2]
[332991872,1721735440701,-442.89524876,0.00010095,2]
[332991874,1721735440710,-159.11242425,0.00010116,2]
[332991876,1721735440722,-498.00325714,0.00010116,2]
[332991879,1721735440733,-59.04741796,0.00010116,2]
[332991881,1721735440742,-335.94515094,0.00010132,2]
[332991897,1721735440892,-994.67241259,0.00010132,2]
[332991899,1721735440902,-166.66666666,0.00010176,2]
[332991901,1721735440914,-363.73758789,0.00010192,2]
[332991903,1721735440923,-266.65106926,0.00010201,2]
[332991905,1721735440933,-247.84422791,0.00010235,2]
[332991907,1721735440943,-363.73758789,0.00010268,2]
[332991909,1721735440954,-716.16309935,0.00010291,2]
[332991911,1721735440963,-166.66666666,0.00010352,2]
[332991913,1721735440973,-256.2898138,0.00010367,2]
[332991916,1721735440983,-1330.61756353,0.00010403,2]
[332991918,1721735440993,-266.65106926,0.00010413,2]
[332991920,1721735441005,-716.16309935,0.00010424,2]
[332991922,1721735441014,-687.79,0.00010442,2]
[332991924,1721735441023,-247.84422791,0.00010452,2]
[332991926,1721735441033,-93.60640754,0.00010481,2]
[332991928,1721735441044,-162.68340626,0.00010481,2]
[332991930,1721735441053,-166.66666666,0.00010497,2]
[332991932,1721735441062,-166.66666667,0.00010517,2]
[332991934,1721735441072,-1000.0,0.00010548,2]
[332991936,1721735441081,-337.70380526,0.0001055,2]
[332991938,1721735441091,-1330.61756353,0.00010555,2]
[332991940,1721735441100,-152.53046895,0.00010556,2]
[332991942,1721735441109,-420.0,0.00010558,2]
[332991944,1721735441118,-234.13732943,0.00010605,2]
[332991946,1721735441128,-168.86917521,0.00010609,2]
[332991948,1721735441137,-156.02826447,0.00010636,2]
[332991950,1721735441146,-6.99232754,0.00010639,2]
[332992142,1721735443141,-147.39714067,0.00010639,2]
[332992144,1721735443151,-255.0,0.00010644,2]
[332992146,1721735443160,-676.92203933,0.00010704,2]
[332992161,1721735443299,-39.24106002,0.00010704,2]
[332992163,1721735443308,-234.13732943,0.00010717,2]
[332992165,1721735443317,-1098.68104166,0.0001078,2]
[332992167,1721735443326,-1688.4644192,0.0001078,2]
[332992169,1721735443335,-459.57614969,0.00010814,2]
[332992188,1721735443509,-256.58694966,0.00010814,2]
[332992190,1721735443519,-1340.58913833,0.0001089,2]
[332992451,1721735446174,-1659.41086167,0.0001089,2]
[332992453,1721735446183,-587.30797666,0.00010898,2]
[332995484,1721735819131,531.58,0.0001581,60]
[332995486,1721735826814,619.01,8.219e-05,2]
[332995490,1721735877661,155.0,8.219e-05,2]
[332995493,1721735983593,155.0,8.219e-05,2]
[332995501,1721736076110,242.51272939,8.219e-05,2]
[332995504,1721736384159,1225.74254615,8.219e-05,2]
[332995509,1721736420690,614.77,8.219e-05,2]
[332995510,1721736481586,1369.42188879,8.219e-05,2]
[332995511,1721736513674,-150.0,0.00016346,120]
[332995512,1721736566645,1369.42188879,8.219e-05,2]
[332995522,1721736632381,-150.98429647,9.333e-05,2]
[332995523,1721736632392,-239.20382621,9.337e-05,2]
[332995524,1721736632401,-368.27250928,9.366e-05,2]
[332995525,1721736632413,-204.6579702,9.366e-05,2]
[332995526,1721736632424,-315.19021824,9.389e-05,2]
[332995527,1721736632433,-195.37453817,9.402e-05,2]
[332995528,1721736632444,-581.78546183,9.402e-05,2]
[332995529,1721736632454,-427.19,9.414e-05,2]
[332995531,1721736632463,-156.73974447,9.416e-05,2]
[332995533,1721736632473,-150.58497355,9.418e-05,2]
[332995535,1721736632482,-414.98487012,9.434e-05,2]
[332995554,1721736632831,-440.91512988,9.434e-05,2]
[332995555,1721736632841,-155.39218711,9.475e-05,2]
[332995556,1721736632851,-541.21877606,9.549e-05,2]
[332995557,1721736632862,-458.78122394,9.549e-05,2]
[332995558,1721736632871,-156.02826447,9.581e-05,2]
[332995559,1721736632880,-1108.84796961,9.583e-05,2]
[332995560,1721736632890,-166.66666666,9.587e-05,2]
[332995561,1721736632902,-210.72359649,9.614e-05,2]
[332995562,1721736632913,-1108.84796961,9.635e-05,2]
[332995563,1721736632924,-222.20922438,9.652e-05,2]
[332995564,1721736632933,-239.20382621,9.687e-05,2]
[332995565,1721736632943,-160.45083347,9.749e-05,2]
[332995566,1721736632952,-150.98429647,9.774e-05,2]
[332995567,1721736632962,-156.02826447,9.775e-05,2]
[332995568,1721736632972,-150.98429647,9.792e-05,2]
[332995569,1721736632982,-572.93047948,9.796e-05,2]
[332995570,1721736632993,-214.79833085,9.878e-05,2]
[332995571,1721736633004,-300.0,9.928e-05,2]
[332995572,1721736633013,-166.66666666,9.929e-05,2]
[332995573,1721736633023,-151.32323001,9.969e-05,2]
[332995574,1721736633032,-572.93047948,9.97e-05,2]
[332995575,1721736633041,-239.20382621,0.00010024,2]
[332995576,1721736633051,-168.018975,0.0001003,2]
[332995577,1721736633061,-453.62838161,0.00010035,2]
[332995578,1721736633070,-1108.84796961,0.00010037,2]
[332995579,1721736633080,-239.20382621,0.00010073,2]
[332995580,1721736633089,-156.02826447,0.00010077,2]
[332995581,1721736633099,-239.20382621,0.0001014,2]
[332995582,1721736633108,-157.61962142,0.00010204,2]
[332995583,1721736633118,-155.01311996,0.00010214,2]
[332995584,1721736633127,-315.19021824,0.0001023,2]
[332995585,1721736633136,-214.79833085,0.00010291,2]
[332995586,1721736633145,-500.0,0.000103,3]
[332995587,1721736633156,-1108.84796961,0.00010311,2]
[332995588,1721736633165,-453.62838161,0.00010338,2]
[332995589,1721736633177,-1000.0,0.000104,3]
[332995590,1721736633189,-166.66666666,0.00010405,2]
[332995591,1721736633198,-166.66666666,0.00010416,2]
[332995592,1721736633208,-944.65121874,0.00010417,2]
[332995593,1721736633218,-151.32323001,0.00010442,2]
[332995594,1721736633227,-614.77,0.00010445,2]
[332995595,1721736633237,-210.72359649,0.00010483,2]
[332995596,1721736633246,-572.93047948,0.00010493,2]
[332995597,1721736633257,-1600.0,0.000105,3]
[332995598,1721736633266,-222.20922438,0.00010509,2]
[332995599,1721736633275,-453.62838161,0.00010526,2]
[332995600,1721736633285,-572.93047948,0.00010556,2]
[332995601,1721736633294,-239.20382621,0.00010579,2]
[332995602,1721736633304,-1108.84796961,0.00010589,2]
[332995603,1721736633313,-168.018975,0.00010595,2]
[332995604,1721736633323,-2100.0,0.000106,3]
[332995605,1721736633332,-222.20922438,0.00010629,2]
[332995606,1721736633342,-222.20922438,0.00010632,2]
[332995607,1721736633351,-214.79833085,0.00010663,2]
[332995608,1721736633361,-156.73974447,0.00010665,2]
[332995609,1721736633370,-2600.0,0.000107,3]
[332995610,1721736633380,-453.62838161,0.00010715,2]
[332995611,1721736633389,-1000.0,0.00010743,2]
[332995612,1721736633399,-500.0,0.000108,3]
[332995613,1721736633409,-166.66666666,0.000108,2]
[332995614,1721736633420,-315.19021824,0.00010801,2]
[332995615,1721736633430,-150.98429647,0.00010815,2]
[332995616,1721736633439,-288.25,0.0001082,2]